fUSD/lending_fUSD_20240709
["ID","MTS","AMOUNT","RATE_DAILY","PERIOD"]
[331581888,1720545032778,-344.28606759,0.00013785,2]
[331581889,1720545032788,-169.80600212,0.00013789,2]
[331581890,1720545032797,-169.80600208,0.00013817,2]
[331581891,1720545032807,-360.723,0.0001383,2]
[331581892,1720545032817,-1820.0,0.0001383,2]
[331581893,1720545032827,-1251.0,0.0001383,2]
[331581894,1720545032837,-1655.0,0.0001383,2]
[331581895,1720545032847,-256.0,0.0001383,2]
[331581896,1720545032858,-169.80600208,0.00013845,2]
[331581897,1720545032867,-527.47467871,0.00013849,2]
[331581899,1720545032878,-627.75106317,0.00013849,2]
[331581900,1720545032888,-294.44136,0.0001386,2]
[331581901,1720545032898,-5828.0,0.0001386,2]
[331581902,1720545032908,-169.80600208,0.00013872,2]
[331581903,1720545032918,-500.0,0.00013887,2]
[331581904,1720545032932,-500.0,0.00013888,2]
[331581905,1720545032942,-722.84871215,0.00013889,2]
[331581906,1720545032951,-482.75596204,0.00013889,2]
[331581907,1720545032961,-536.16233442,0.00013889,2]
[331581908,1720545032971,-518.99335671,0.00013889,2]
[331581909,1720545032981,-675.76502173,0.00013889,2]
[331581910,1720545032991,-289.0,0.0001389,2]
[331581911,1720545033000,-321.76546126,0.00013899,2]
[331581912,1720545033010,-169.80600208,0.000139,2]
[331581913,1720545033020,-169.88866675,0.000139,2]
[331581914,1720545033030,-998.93537444,0.000139,2]
[331581915,1720545033040,-169.08322514,0.000139,2]
[331581916,1720545033050,-340.39744622,0.000139,2]
[331581917,1720545033060,-156.51336,0.00013914,2]
[331581918,1720545033070,-3801.282592,0.00013914,2]
[331581919,1720545033079,-1252.82628171,0.00013973,3]
[331581920,1720545033097,-307.8334,0.00013973,3]
[331581921,1720545033109,-439.34031829,0.00013973,3]
[331581922,1720545033119,-198.00670023,0.00013989,2]
[331581923,1720545033128,-289.0,0.0001399,2]
[331581924,1720545033141,-549.5150404,0.0001399,2]
[331581925,1720545033152,-549.5150404,0.0001399,2]
[331581926,1720545033163,-549.5150404,0.0001399,2]
[331581927,1720545033173,-549.5150404,0.0001399,2]
[331581928,1720545033184,-549.5150404,0.0001399,2]
[331581929,1720545033193,-198.00670023,0.0001399,2]
[331581930,1720545033203,-66395.03767952,0.00013998,2]
[331581931,1720545033215,-15966.40428916,0.00013998,2]
[331581932,1720545033225,-256021.58842596,0.00013999,2]
[331581933,1720545033234,-369.48911235,0.00013999,2]
[331581934,1720545033244,-533.5029293,0.00013999,2]
[331581935,1720545033254,-155.0,0.00013999,2]
[331581936,1720545033264,-796.0,0.00014,2]
[331581937,1720545033273,-196786.23659394,0.00014,2]
[331581938,1720545033285,-3111.40281369,0.00014,2]
[331581939,1720545033298,-876.11960137,0.00014,2]
[331581940,1720545033309,-84292.09396052,0.00014,2]
[331581947,1720545037700,-308.48390406,0.00012302,2]
[331581948,1720545037710,-405.14638905,0.00013128,2]
[331581949,1720545037719,-218.87668699,0.00013128,2]
[331581950,1720545037729,-163.93444029,0.00013989,2]
[331581951,1720545037738,-29644.05857961,0.00014,2]
[331581952,1720545037815,-250.39418971,0.00014,2]
[331581953,1720545037827,-1176.17381782,0.00014,2]
[331581954,1720545037839,-6143.0115967,0.00014,2]
[331581955,1720545037854,-5190.66473126,0.00014,2]
[331581956,1720545037921,-1131.70000001,0.00014,2]
[331582146,1720545039776,-722.0,0.00014,2]
[331582148,1720545039786,-20974.16652626,0.00014,2]
[331582165,1720545039967,-5605.36,0.00014,2]
[331582166,1720545039983,-464.61350003,0.00014,2]
[331582169,1720545040019,-1016.48776878,0.00014,2]
[331582443,1720545042758,-173921.40783249,0.00014,2]
[331582454,1720545042815,-9695.09656367,0.00014,2]
[331582462,1720545042873,-800.90047991,0.00014,2]
[331582469,1720545042986,-869.95370905,0.00014,2]
[331582599,1720545044215,-5506.1859831,0.00014,2]
[331582632,1720545045989,-311.59645834,0.00013574,2]
[331582637,1720545047078,-1236.38266463,0.00013574,2]
[331582638,1720545047088,-459.11975821,0.00014,2]
[331582639,1720545047099,-252.80408456,0.00014,2]
[331582758,1720545329609,167.46,0.00010533,2]
[331582760,1720545335025,2202.75526706,0.00011199,2]
[331582764,1720545354638,3514.2726896,0.00011199,2]
[331582765,1720545354665,9378.97984167,0.00011199,2]
[331582767,1720545360450,621.02015833,0.00011199,2]
[331582768,1720545360475,339.32583527,0.00011199,2]
[331582769,1720545361570,329.23044534,0.00011199,2]
[331582770,1720545363972,348.80546035,0.00011199,2]
[331582773,1720545369550,2982.16880793,0.00011199,2]
[331582774,1720545370012,155.31790718,0.00011199,2]
[331582775,1720545372366,290.05645915,0.00011199,2]
[331582776,1720545375015,155.45899596,0.00011199,2]
[331582778,1720545377486,553.30178873,0.00011199,2]
[331582784,1720545414779,527.47467871,0.00011199,2]
[331582788,1720545446800,155.0,0.00027,120]
[331582790,1720545455770,273.34393582,0.00011199,2]
[331582792,1720545458809,438.35174148,0.00011199,2]
[331582793,1720545458901,1354.19559162,0.00011199,2]
[331582795,1720545464008,243.32152287,0.00011199,2]
[331582799,1720545483118,298.51541728,0.00011199,2]
[331582801,1720545491544,162.79,0.00010207,2]
[331582803,1720545505039,156.16906047,0.00011199,2]
[331582805,1720545508166,724.07,0.00010859,2]
[331582812,1720545553475,540.82471307,0.00010207,2]
[331582819,1720545603353,127.27763877,0.00010207,2]
[331582820,1720545603377,22.72236123,0.00010207,2]
[331582822,1720545604047,150.0,0.00010207,2]
[331582823,1720545604495,299.44104474,0.00010207,2]
[331582826,1720545620556,9527.83659403,0.00011199,2]
[331582827,1720545620584,9252.5463811,0.00011199,2]
[331582831,1720545653337,2258.5184792,0.00011199,2]
[331582846,1720545775537,413.27406791,0.00011199,2]
[331582847,1720545776133,155.14665417,0.00011199,2]
[331582849,1720545785767,155.99321892,0.00011199,2]
[331582852,1720545802545,156.1108163,0.00011199,2]
[331582855,1720545814910,378.80523673,0.00011199,2]
[331582862,1720545861052,3909.47465341,0.00011199,2]
[331582864,1720545868162,159.06163716,0.00011199,2]
[331582865,1720545873154,260.60723149,0.00011199,2]
[331582877,1720545950985,276.34359382,0.00011199,2]
[331582879,1720545959345,5516.67920063,0.00011199,2]
[331582896,1720546060304,2141.41153898,0.00011199,2]
[331582901,1720546094040,741.04,0.00010699,2]
[331582905,1720546114676,7117.54846102,0.00011199,2]
[331582906,1720546114700,10000.0,0.00011199,2]
[331582907,1720546114723,10000.0,0.00011199,2]
[331582908,1720546114745,2882.45153898,0.00011199,2]
[331582912,1720546146377,2739.31422748,0.00011199,2]
[331582937,1720546233087,-160.27755314,0.00012202,2]
[331582938,1720546233097,-559.29008653,0.00012273,2]
[331582939,1720546233108,-269.0000005,0.00012273,2]
[331582940,1720546233120,-1158.5353026,0.00012273,2]
[331582941,1720546233129,-1208.85054119,0.00012302,2]
[331582942,1720546233142,-45.01112495,0.00012302,2]
[331582943,1720546233152,-370.08609286,0.00012314,2]
[331582944,1720546233164,-29.91390714,0.00012314,2]
[331582945,1720546233173,-278.89351686,0.0001249,2]
[331582946,1720546233795,-684.28124624,0.0001249,2]
[331582947,1720546233804,-157.7415,0.0001255,2]
[331582948,1720546233814,-187.09,0.0001259,2]
[331582949,1720546233824,-2410.96019831,0.0001259,2]
[331582950,1720546233836,-4057.32454602,0.0001259,2]
[331582951,1720546233847,-1231.85132041,0.0001259,2]
[331582952,1720546233860,-311.84172578,0.0001259,2]
[331582953,1720546233875,-833.36001832,0.0001259,2]
[331582954,1720546233888,-537.12016184,0.0001259,2]
[331582955,1720546233899,-1082.26155855,0.0001259,2]
[331582956,1720546233912,-315.29707946,0.0001259,2]
[331582957,1720546233924,-2051.55648769,0.0001259,2]
[331582961,1720546238291,-399.864,0.0001259,2]
[331582962,1720546238303,-4738.32290362,0.0001259,2]
[331582963,1720546238313,-150.0,0.000126,2]
[331582964,1720546238323,-1233.28,0.0001265,2]
[331582965,1720546238333,-1000.0,0.00012651,2]
[331582966,1720546238343,-150.0,0.0001266,2]
[331582967,1720546238352,-250.0,0.00012707,2]
[331582968,1720546238362,-281.7,0.00012707,2]
[331582969,1720546238372,-150.99,0.00012733,2]
[331582970,1720546238382,-178.22,0.00012903,2]
[331582971,1720546238391,-741.04,0.00012963,2]
[331582972,1720546238401,-3075.42618675,0.00013128,2]
[331582973,1720546238415,-276.34359382,0.00013128,2]
[331582974,1720546238425,-1386.68676949,0.00013128,2]
[331582975,1720546238434,-150.0,0.00013178,2]
[331582976,1720546238444,-1055.88,0.000132,2]
[331582977,1720546238453,-299.34540704,0.0001329,2]
[331582978,1720546238463,-1000.0,0.00013299,2]
[331582979,1720546238473,-12478.11327547,0.000133,2]
[331582980,1720546238485,-19874.61062453,0.000133,2]
[331582981,1720546238494,-2141.41153898,0.00013472,2]
[331582982,1720546238504,-401.43799303,0.00013472,2]
[331582984,1720546238514,-1060.79748161,0.00013472,2]
[331582986,1720546238524,-1500.0,0.00013472,2]
[331582988,1720546238534,-647.26467047,0.00013472,2]
[331582989,1720546238544,-260.41207263,0.00013472,2]
[331582992,1720546238554,-146.83658981,0.00013516,2]
[331582994,1720546238566,-1858.39199471,0.00013516,2]
[331582996,1720546238575,-2738.75386802,0.00013574,2]
[331582998,1720546238585,-155.03574482,0.00013574,2]
[331583000,1720546238594,-250.0,0.00013699,2]
[331583002,1720546238604,-335.96,0.00013699,2]
[331583004,1720546238615,-1904.51355182,0.00013736,2]
[331583006,1720546238624,-1200.0,0.00013736,2]
[331583008,1720546238633,-1400.59680387,0.00013736,2]
[331583010,1720546238643,-561.53847,0.0001386,2]
[331583012,1720546238652,-500.0,0.00013888,2]
[331583014,1720546238662,-519.715698,0.00013889,2]
[331583016,1720546238672,-457.35417858,0.00013889,2]
[331583018,1720546238681,-269.8232753,0.00013889,2]
[331583020,1720546238691,-519.59298252,0.00013899,2]
[331583021,1720546238701,-628.29145865,0.00013899,2]
[331583022,1720546238712,-953.4433,0.000139,2]
[331583023,1720546238722,-630.27037071,0.000139,2]
[331583024,1720546238731,-179.77556321,0.000139,2]
[331583025,1720546238741,-163.87622134,0.000139,2]
[331583026,1720546238751,-367.02635876,0.000139,2]
[331583028,1720546238760,-2000.0,0.00013973,3]
[331583030,1720546238770,-201.4888481,0.0001399,2]
[331583032,1720546238780,-201.4888481,0.0001399,2]
[331583034,1720546238791,-201.4888481,0.0001399,2]
[331583036,1720546238801,-201.4888481,0.0001399,2]
[331583038,1720546238811,-201.4888481,0.0001399,2]
[331583040,1720546238822,-884.04,0.0001399,3]
[331583042,1720546238832,-189.03632988,0.0001399,2]
[331583044,1720546238842,-298.01060598,0.00013999,2]
[331583046,1720546238852,-267.06501758,0.00013999,2]
[331583048,1720546238861,-369.18293041,0.00013999,2]
[331583050,1720546238872,-155.27540936,0.00013999,2]
[331583052,1720546238881,-254.227224,0.00013999,2]
[331583054,1720546238891,-156.43238875,0.00013999,2]
[331583056,1720546238902,-155.0,0.00013999,2]
[331583058,1720546238912,-218.11385927,0.00013999,2]
[331583060,1720546238922,-774.0,0.00014,2]
[331583063,1720546238932,-12048.99871198,0.00014,2]
[331583066,1720546238957,-13232.81965932,0.00014,2]
[331583149,1720546240139,-740.66099995,0.00014,2]
[331583151,1720546240152,-609.49652314,0.00014,2]
[331583420,1720546244679,-337.09590134,0.00013999,2]
[331583421,1720546244689,-906.84323006,0.00014,2]
[331583422,1720546244707,-696.93401252,0.00014,2]
[331583423,1720546244719,-8450.7127794,0.00014,2]
[331583424,1720546244730,-384.34999965,0.00014,2]
[331583442,1720546246308,-5146.14065283,0.0001249,2]
[331583443,1720546246318,-6468.30498684,0.00014,2]
[331583444,1720546246336,-30278.76096787,0.00014,2]
[331583486,1720546452385,4378.23423354,0.00011,2]
[331583487,1720546452411,6498.55065209,0.00011,2]
[331583491,1720546470883,3501.44934791,6.94e-05,2]
[331583492,1720546470907,6132.11217793,6.94e-05,2]
[331583495,1720546484499,1660.67411018,0.00011199,2]
[331583498,1720546496329,2141.41153898,0.00011199,2]
[331583503,1720546526093,65.80217291,0.00011199,2]
[331583504,1720546526119,131.61121339,0.00011199,2]
[331583506,1720546536236,1883.79068713,0.00011199,2]
[331583509,1720546548959,688.05486749,0.00011199,2]
[331583513,1720546569289,1401.70855482,0.00011199,2]
[331583519,1720546609900,838.04332884,0.00011199,2]
[331583528,1720546660110,525.54680353,0.00011199,2]
[331583529,1720546663573,169.8426272,0.00011199,2]
[331583533,1720546684402,710.65,0.00010988,2]
[331583535,1720546695046,276.34359382,0.00011199,2]
[331583543,1720546727102,164.51115525,0.00011199,2]
[331583544,1720546733288,300.51199197,0.00011199,2]
[331583546,1720546740373,1105.06565526,0.00011199,2]
[331583553,1720546794755,1804.3195213,0.00011199,2]
[331583554,1720546794779,10000.0,0.00011199,2]
[331583555,1720546794803,10000.0,0.00011199,2]
[331583556,1720546794827,10000.0,0.00011199,2]
[331583557,1720546794854,43732.4852048,0.00011199,2]
[331583558,1720546794878,22474.70906689,0.00011199,2]
[331583568,1720546867001,150.0,0.00011199,2]
[331583569,1720546867026,150.0,0.00011199,2]
[331583570,1720546867050,150.0,0.00011199,2]
[331583571,1720546867074,150.0,0.00011199,2]
[331583572,1720546867099,150.0,0.00011199,2]
[331583573,1720546867122,149.10221779,0.00011199,2]
[331583575,1720546897405,150.0,0.00011199,2]
[331583576,1720546897426,5.0,0.00011199,2]
[331583578,1720546915757,10000.0,0.00011199,2]
[331583579,1720546915787,10000.0,0.00011199,2]
[331583580,1720546915812,10000.0,0.00011199,2]
[331583581,1720546915836,10000.0,0.00011199,2]
[331583582,1720546915860,4806.06601007,0.00011199,2]
[331583583,1720546973703,5193.93398993,0.00011199,2]
[331583584,1720546973728,10000.0,0.00011199,2]
[331583585,1720546973752,10000.0,0.00011199,2]
[331583586,1720546973777,10000.0,0.00011199,2]
[331583587,1720546973802,409.43026909,0.00011199,2]
[331583588,1720547001840,163.93444029,0.00011199,2]
[331583589,1720547004236,256.03446951,0.00011199,2]
[331583590,1720547015484,158.47133143,0.00011199,2]
[331583591,1720547016721,163.93444029,0.00011199,2]
[331583592,1720547037044,8848.19504939,0.00011199,2]
[331583593,1720547037067,1151.80495061,0.00011199,2]
[331583594,1720547041257,431.31007858,0.00011199,2]
[331583595,1720547067439,242.37427876,0.00011199,2]
[331583596,1720547075728,8174.51069205,0.00011199,2]
[331583597,1720547075752,1287.62752374,0.00011199,2]
[331583598,1720547087047,150.0,0.00011199,2]
[331583599,1720547087075,123.74302174,0.00011199,2]
[331583600,1720547110074,276.83197851,0.00011199,2]
[331583601,1720547214195,150.0,0.00010917,2]
[331583602,1720547214219,150.0,0.00010917,2]
[331583603,1720547214242,150.0,0.00010917,2]
[331583604,1720547214266,150.0,0.00010917,2]
[331583605,1720547214289,95.16,0.00010917,2]
[331583606,1720547235207,202.32659604,0.00011199,2]
[331583607,1720547238278,150.0,0.00011199,2]
[331583608,1720547238300,150.0,0.00011199,2]
[331583609,1720547238321,150.0,0.00011199,2]
[331583610,1720547238342,150.0,0.00011199,2]
[331583611,1720547238367,150.0,0.00011199,2]
[331583612,1720547238388,150.0,0.00011199,2]
[331583613,1720547238411,150.0,0.00011199,2]
[331583614,1720547249272,150.0,0.00011199,2]
[331583615,1720547249294,150.0,0.00011199,2]
[331583616,1720547249316,150.0,0.00011199,2]
[331583617,1720547249336,150.0,0.00011199,2]
[331583618,1720547249358,150.0,0.00011199,2]
[331583619,1720547249381,150.0,0.00011199,2]
[331583620,1720547249402,150.0,0.00011199,2]
[331583621,1720547249423,150.0,0.00011199,2]
[331583622,1720547249445,150.0,0.00011199,2]
[331583623,1720547249469,150.0,0.00011199,2]
[331583624,1720547249493,150.0,0.00011199,2]
[331583625,1720547253518,150.0,0.00010959,2]
[331583626,1720547253544,29.17,0.00010959,2]
[331583627,1720547259543,150.0,0.00011199,2]
[331583628,1720547259566,150.0,0.00011199,2]
[331583629,1720547259587,150.0,0.00011199,2]
[331583630,1720547259609,150.0,0.00011199,2]
[331583631,1720547259630,102.49402152,0.00011199,2]
[331583632,1720547261422,47.50597848,0.00011199,2]
[331583633,1720547261444,150.0,0.00011199,2]
[331583634,1720547261466,150.0,0.00011199,2]
[331583635,1720547261486,97.49402152,0.00011199,2]
[331583636,1720547262156,52.50597848,0.00011199,2]
[331583637,1720547262178,150.0,0.00011199,2]
[331583638,1720547262200,107.49402152,0.00011199,2]
[331583639,1720547262475,42.50597848,0.00011199,2]
[331583640,1720547262496,150.0,0.00011199,2]
[331583641,1720547262518,150.0,0.00011199,2]
[331583642,1720547262540,150.0,0.00011199,2]
[331583643,1720547262561,150.0,0.00011199,2]
[331583644,1720547262582,249.86948551,0.00011199,2]
[331583645,1720547262602,150.0,0.00011199,2]
[331583646,1720547262626,44085.3196903,0.00011199,2]
[331583647,1720547270800,234926.92072485,0.00011199,2]
[331583648,1720547314563,155.0,0.00011199,2]
[331583649,1720547344567,155.0,0.00011199,2]
[331583651,1720547373154,212.06693148,0.00011199,2]
[331583653,1720547378356,10998.97795468,0.00011199,2]
[331583672,1720547438458,-857.2898,0.00012002,2]
[331583673,1720547438468,-393.19565354,0.00012302,2]
[331583674,1720547438479,-250.0,0.00012585,2]
[331583675,1720547438488,-150.0,0.000126,2]
[331583676,1720547438498,-5640.11595133,0.00012737,2]
[331583677,1720547438507,-250.0,0.00012737,2]
[331583678,1720547438517,-500.0,0.00012751,2]
[331583679,1720547438527,-172.02,0.00012764,2]
[331583680,1720547438538,-178.22,0.00012776,2]
[331583681,1720547438548,-247.34,0.00012862,2]
[331583682,1720547438559,-1000.0,0.00012876,2]
[331583683,1720547438570,-150.0,0.00012904,2]
[331583684,1720547438580,-300.0,0.00013127,2]
[331583685,1720547438591,-3905.35539231,0.00013128,2]
[331583686,1720547438601,-3112.40418631,0.00013128,2]
[331583687,1720547438611,-3238.73428065,0.00013128,2]
[331583688,1720547438624,-630.05082092,0.00013128,2]
[331583689,1720547438636,-21.49392628,0.00013128,2]
[331583690,1720547438647,-833.28128399,0.00013128,2]
[331583691,1720547438661,-227.4039645,0.00013181,2]
[331583692,1720547438674,-467.7560355,0.00013181,2]
[331583693,1720547438684,-190.65,0.00013217,2]
[331583694,1720547438695,-197.974978,0.00013411,2]
[331583695,1720547438705,-582.49426412,0.00013472,2]
[331583696,1720547438718,-328.559,0.00013472,2]
[331583699,1720547438738,-1018.91138684,0.00013472,2]
[331583701,1720547438751,-1096.24836271,0.00013472,2]
[331583703,1720547438761,-176.57450029,0.00013472,2]
[331583705,1720547438773,-169.15913638,0.00013516,2]
[331583707,1720547438783,-450.0,0.00013516,2]
[331583708,1720547438794,-292.54231197,0.00013516,2]
[331583709,1720547438805,-155.0,0.00013516,2]
[331583710,1720547438816,-600.0,0.00013543,2]
[331583711,1720547438827,-614.97681791,0.00013574,2]
[331583712,1720547438837,-3645.49887074,0.00013574,2]
[331583713,1720547438850,-346.7403356,0.00013574,2]
[331583714,1720547439377,-535.46746508,0.00013574,2]
[331583715,1720547439390,-335.125,0.00013574,2]
[331583716,1720547439407,-6146.48951476,0.00013574,2]
[331583717,1720547440323,-155.0,0.00013516,2]
[331583718,1720547440333,-5283.24850924,0.00013574,2]
[331583719,1720547440392,-1780.95012414,0.00013574,2]
[331583720,1720547440587,-1174.31752417,0.00013574,2]
[331583721,1720547440599,-260.07906257,0.00013574,2]
[331583884,1720547443392,-1310.42936115,0.00013574,2]
[331583885,1720547443527,-3271.38994784,0.00013574,2]
[331583886,1720547443538,-8775.89134726,0.00013574,2]
[331583887,1720547443548,-6865.67120117,0.00013574,2]
[331583888,1720547443558,-167.98,0.00013699,2]
[331583889,1720547443568,-150.0,0.00013852,2]
[331583890,1720547443578,-1189.71804,0.0001386,2]
[331583891,1720547443588,-500.0,0.00013888,2]
[331583892,1720547443598,-7902.3351,0.000139,2]
[331583893,1720547443608,-1033.7973,0.000139,2]
[331583894,1720547443617,-167.27843963,0.000139,2]
[331583895,1720547443627,-2132.45916253,0.000139,2]
[331583896,1720547443636,-322.05182512,0.000139,2]
[331583897,1720547443646,-1379.6950458,0.000139,2]
[331583898,1720547443659,-917.977771,0.00013973,2]
[331583899,1720547443668,-189.03632989,0.0001399,2]
[331583900,1720547443678,-150.01,0.00013999,2]
[331583901,1720547443687,-5925.63188713,0.00013999,2]
[331583902,1720547443696,-193.29265507,0.00013999,2]
[331583903,1720547443705,-702.0,0.00014,2]
[331583904,1720547443714,-2960.37523955,0.00014,2]
[331583905,1720547443726,-791.68781801,0.00014,2]
[331583906,1720547443742,-3041.95,0.00014,2]
[331583907,1720547443754,-681.83583395,0.00014,2]
[331583908,1720547443769,-268.77602007,0.00014,2]
[331583909,1720547446023,-392.66360108,0.00014,2]
[331583910,1720547446035,-1734.78366287,0.00014,2]
[331583911,1720547446046,-301.16998714,0.00014,2]
[331583912,1720547446057,-1563.16835071,0.00014,2]
[331583913,1720547446069,-33031.23493165,0.00014,2]
[331583914,1720547446079,-57546.24572968,0.00014,2]
[331583920,1720547446436,-3399.39625553,0.00014,2]
[331583921,1720547446452,-1692.20876631,0.00014,2]
[331583922,1720547446464,-11582.50964721,0.00014,2]
[331583923,1720547446483,-882.1746128,0.00014,2]
[331583924,1720547446495,-340670.94821133,0.00014,2]
[331583925,1720547446507,-597.71700003,0.00014,2]
[331583926,1720547446518,-450.59466083,0.00014,2]
[331583927,1720547446530,-1687.01540029,0.00014,2]
[331583928,1720547446541,-465.19651332,0.00014,2]
[331583929,1720547446552,-3250.57147,0.00014,2]
[331583930,1720547446563,-1262.75527433,0.00014,2]
[331583931,1720547446574,-429.75631163,0.00014,2]
[331583932,1720547446587,-408.48752001,0.00014,2]
[331583933,1720547446598,-70626.77164722,0.00014,2]
[331583934,1720547446614,-281.0,0.00014,2]
[331583935,1720547446625,-115920.64940731,0.00014,2]
[331583936,1720547446636,-669438.35733771,0.00014,2]
[331583937,1720547446646,-96646.06848205,0.00014,2]
[331583938,1720547446658,-629.27928532,0.00014,2]
[331583939,1720547446669,-6712.6170832,0.00014,2]
[331583940,1720547446792,-439.48896357,0.00014,2]
[331583941,1720547446804,-1532.24105838,0.00014,2]
[331583945,1720547655325,5876.03826698,0.00011199,2]
[331583946,1720547755025,1417.66794617,0.00011199,2]
[331583947,1720547896009,155.0,0.00011199,2]
[331583948,1720547963168,180.42,0.00010267,2]
[331583949,1720547985909,171.05,0.00010328,2]
[331583950,1720548101026,10996.78739514,0.00011199,2]
[331583951,1720548132338,666.71871601,0.00011199,2]
[331583953,1720548133212,1500.0,0.00011199,2]
[331583954,1720548154455,956.95029332,0.00011199,2]
[331583955,1720548168786,193.71936803,0.00011199,2]
[331583956,1720548185305,607.04569346,0.00011199,2]
[331583958,1720548195757,155.0,0.00011199,2]
[331583959,1720548201418,184.90396962,0.00011199,2]
[331583960,1720548208967,690.00328514,0.00011199,2]
[331583961,1720548213629,202.25757491,0.00011199,2]
[331583962,1720548219641,328.85804811,0.00011199,2]
[331583963,1720548230655,276.15184313,0.00011199,2]
[331583964,1720548236347,217.87188322,0.00011199,2]
[331583966,1720548249013,527.47467871,0.00011199,2]
[331583968,1720548255786,329.01471858,0.00011199,2]
[331583969,1720548281763,295.18363334,0.00011199,2]
[331583970,1720548305759,155.0,0.00011199,2]
[331583971,1720548327956,7470.76121783,0.00011199,2]
[331583972,1720548335747,155.0,0.00011199,2]
[331583973,1720548369080,687.41,0.00010871,2]
[331583974,1720548381256,205.36559528,0.00011199,2]
[331583975,1720548394472,347.93779466,0.00011199,2]
[331583976,1720548435916,7846.50313688,0.00011199,2]
[331583979,1720548627834,193.53933041,0.00011199,2]
[331583980,1720548631728,-359.16532702,0.00012214,2]
[331583981,1720548631740,-1028.02867272,0.00012214,2]
[331583982,1720548631754,-277.50867263,0.00012302,2]
[331583983,1720548631768,-248.94303883,0.00012302,2]
[331583985,1720548631778,-1387.19399974,0.00012371,2]
[331583987,1720548631787,-1387.19399974,0.00012528,2]
[331583989,1720548631796,-250.0,0.00012562,2]
[331583991,1720548631806,-152.52,0.00012628,2]
[331583993,1720548631816,-625.61826226,0.00012645,2]
[331584029,1720548638139,-50.66173774,0.00012645,2]
[331584030,1720548638149,-938.36,0.00012692,2]
[331584031,1720548638158,-250.0,0.0001274,2]
[331584032,1720548638168,-800.0,0.00012743,2]
[331584033,1720548638178,-200.0,0.00012836,2]
[331584034,1720548638188,-150.35,0.00012852,2]
[331584035,1720548638197,-419.36,0.000129,2]
[331584036,1720548638206,-355.03,0.00013078,2]
[331584037,1720548638220,-419.14,0.000131,2]
[331584038,1720548638229,-155.10759368,0.00013128,2]
[331584039,1720548638238,-194.97066858,0.00013135,2]
[331584041,1720548639656,-492.43933142,0.00013135,2]
[331584042,1720548639666,-1884.922608,0.00013411,2]
[331584043,1720548639676,-491.0714775,0.00013411,2]
[331584044,1720548639771,-3027.95925375,0.00013411,2]
[331584045,1720548639784,-3399.15641696,0.00013411,2]
[331584046,1720548639796,-172.33032579,0.00013411,2]
[331584047,1720548639806,-1006.913949,0.00013411,2]
[331584048,1720548639817,-6643.254659,0.00013411,2]
[331584049,1720548639827,-890.157707,0.00013411,2]
[331584050,1720548639838,-694.793324,0.00013411,2]
[331584051,1720548639848,-282.51855,0.00013411,2]
[331584052,1720548639857,-10635.776211,0.00013411,2]
[331584053,1720548639868,-5416.961458,0.00013411,2]
[331584054,1720548639878,-203.31983,0.00013411,2]
[331584055,1720548639888,-636.145476,0.00013411,2]
[331584056,1720548639898,-215.097335,0.00013411,2]
[331584057,1720548639908,-685.36886605,0.00013472,2]
[331584058,1720548639917,-1884.922608,0.00013579,2]
[331584059,1720548639928,-7090.517474,0.00013579,2]
[331584060,1720548639937,-1006.913949,0.00013579,2]
[331584061,1720548639947,-6643.254659,0.00013579,2]
[331584062,1720548639956,-890.157707,0.00013579,2]
[331584063,1720548639971,-694.793324,0.00013579,2]
[331584064,1720548639981,-282.51855,0.00013579,2]
[331584065,1720548639991,-1365.98289703,0.00013579,2]
[331584066,1720548640004,-5198.16634652,0.00013579,2]